fUST/lending_fUST_20250702
["ID","MTS","AMOUNT","RATE_DAILY","PERIOD"]
[369062697,1751448658308,-460.0,0.00019178,2]
[369062698,1751448658318,-1601.52,0.00019178,2]
[369062699,1751448658327,-400.458093,0.00019178,2]
[369062700,1751448658336,-981.86,0.00019178,2]
[369062701,1751448658346,-460.0,0.00019178,2]
[369062702,1751448658355,-639.2,0.00019178,2]
[369062703,1751448658364,-400.458093,0.00019178,2]
[369062704,1751448658374,-460.0,0.00019178,2]
[369062705,1751448658383,-315.078203,0.00019178,2]
[369062706,1751448658392,-460.0,0.00019178,2]
[369062707,1751448658402,-315.078203,0.00019178,2]
[369062708,1751448658412,-1252.66,0.00019178,2]
[369062709,1751448658421,-1779.81,0.00019178,2]
[369062710,1751448658437,-514.94,0.00019178,2]
[369062711,1751448658454,-460.0,0.00019178,2]
[369062712,1751448658468,-591.46600374,0.00019178,2]
[369062713,1751448658480,-543.32,0.00019178,2]
[369062714,1751448658496,-3043.23,0.00019178,2]
[369062715,1751448658510,-460.0,0.00019178,2]
[369062716,1751448658525,-1039.31,0.00019178,2]
[369062717,1751448658539,-673.44,0.00019178,2]
[369062718,1751448658554,-460.0,0.00019178,2]
[369062719,1751448658569,-549.247436,0.00019178,2]
[369062720,1751448658583,-752.26,0.00019178,2]
[369062721,1751448658595,-549.247436,0.00019178,2]
[369062722,1751448658611,-460.0,0.00019178,2]
[369062723,1751448658624,-493.22,0.00019178,2]
[369062724,1751448658637,-945.26,0.00019178,2]
[369062725,1751448658653,-460.0,0.00019178,2]
[369062726,1751448658665,-460.0,0.00019178,2]
[369062727,1751448658679,-460.0,0.00019178,2]
[369062728,1751448658692,-151.0,0.00019178,2]
[369062729,1751448658708,-2036.78,0.00019178,2]
[369062730,1751448658724,-850.18,0.00019178,2]
[369062731,1751448658738,-917.87,0.00019178,2]
[369062732,1751448658749,-738.02,0.00019178,2]
[369062733,1751448658760,-460.0,0.00019178,2]
[369062734,1751448658773,-2796.63,0.00019178,2]
[369062735,1751448658789,-601.73,0.00019178,2]
[369062736,1751448658801,-460.0,0.00019178,2]
[369062737,1751448658813,-520.175804,0.00019178,2]
[369062738,1751448658827,-151.0,0.00019178,2]
[369062739,1751448658840,-520.175804,0.00019178,2]
[369062740,1751448658852,-460.0,0.00019178,2]
[369062741,1751448658864,-460.0,0.00019178,2]
[369062742,1751448658876,-704.62,0.00019178,2]
[369062743,1751448658888,-460.0,0.00019178,2]
[369062744,1751448658902,-556.49,0.00019178,2]
[369062745,1751448658914,-586.67,0.00019178,2]
[369062746,1751448658926,-2772.01,0.00019178,2]
[369062747,1751448658939,-918.17,0.00019178,2]
[369062748,1751448658951,-4661.58,0.00019178,2]
[369062749,1751448658964,-183.55597212,0.00019178,2]
[369062750,1751448658976,-521.34,0.00019178,2]
[369062751,1751448658989,-690.26,0.00019178,2]
[369062752,1751448659002,-657.84,0.00019178,2]
[369062753,1751448659014,-4403.74,0.00019178,2]
[369062754,1751448659027,-763.68,0.00019178,2]
[369062755,1751448659039,-3041.35,0.00019178,2]
[369062756,1751448659051,-460.0,0.00019178,2]
[369062757,1751448659063,-1765.57,0.00019178,2]
[369062758,1751448659075,-460.0,0.00019178,2]
[369062759,1751448659088,-1237.16,0.00019178,2]
[369062760,1751448659100,-1222.14,0.00019178,2]
[369062761,1751448659113,-714.34,0.00019178,2]
[369062762,1751448659124,-460.0,0.00019178,2]
[369062763,1751448659137,-460.0,0.00019178,2]
[369062764,1751448659148,-703.87,0.00019178,2]
[369062765,1751448659160,-460.0,0.00019178,2]
[369062766,1751448659172,-646.36,0.00019178,2]
[369062767,1751448659184,-829.430214,0.00019178,2]
[369062768,1751448659196,-460.0,0.00019178,2]
[369062769,1751448659209,-460.3,0.00019178,2]
[369062770,1751448659221,-829.430214,0.00019178,2]
[369062771,1751448659234,-1387.48,0.00019178,2]
[369062772,1751448659247,-680.46,0.00019178,2]
[369062773,1751448659258,-151.0,0.00019178,2]
[369062774,1751448659268,-151.0,0.00019178,2]
[369062775,1751448659278,-1945.84,0.00019178,2]
[369062776,1751448659287,-1561.58,0.00019178,2]
[369062777,1751448659297,-793.44,0.00019178,2]
[369062778,1751448659306,-6281.5,0.00019178,2]
[369062779,1751448659316,-1905.09,0.00019178,2]
[369062780,1751448659325,-779.68,0.00019178,2]
[369062781,1751448659335,-460.0,0.00019178,2]
[369062782,1751448659344,-55096.8133402,0.00019178,2]
[369062783,1751448659353,-478.318675,0.00019178,2]
[369062784,1751448659363,-302.54622906,0.0001919,2]
[369062785,1751448659372,-207.93081835,0.00019286,2]
[369062786,1751448659382,-151.0,0.00019329,2]
[369062787,1751448659393,-167.999166,0.00019329,2]
[369062788,1751448659402,-167.999166,0.00019329,2]
[369062789,1751448659412,-151.0,0.00019329,2]
[369062790,1751448659421,-289.209406,0.00019329,2]
[369062791,1751448659431,-151.0,0.00019329,2]
[369062792,1751448659440,-289.209406,0.00019329,2]
[369062793,1751448659449,-351.966669,0.00019329,2]
[369062794,1751448659459,-351.966669,0.00019329,2]
[369062795,1751448659469,-151.0,0.00019329,2]
[369062796,1751448659478,-197.340509,0.00019329,2]
[369062797,1751448659487,-151.0,0.00019329,2]
[369062798,1751448659497,-151.0,0.00019329,2]
[369062799,1751448659508,-168.645758,0.00019329,2]
[369062800,1751448659518,-151.0,0.00019329,2]
[369062801,1751448659528,-212.325124,0.00019329,2]
[369062802,1751448659539,-156.053177,0.00019329,2]
[369062803,1751448659549,-156.053177,0.00019329,2]
[369062804,1751448659559,-486.38795,0.00019329,2]
[369062805,1751448659568,-486.38795,0.00019329,2]
[369062806,1751448659577,-97522.23887881,0.00019329,2]
[369062807,1751448659587,-302.54622906,0.0001938,2]
[369062808,1751448659596,-1167.65847021,0.00019383,2]
[369062809,1751448659606,-449.8,0.00019434,3]
[369062810,1751448659616,-676.41,0.00019452,2]
[369062811,1751448659625,-567.17,0.00019452,2]
[369062812,1751448659634,-518.44,0.00019452,2]
[369062813,1751448659643,-460.0,0.00019452,2]
[369062814,1751448659657,-557.63,0.00019452,2]
[369062815,1751448659667,-151.0,0.00019452,2]
[369062816,1751448659680,-151.0,0.00019452,2]
[369062817,1751448659691,-151.0,0.00019452,2]
[369062818,1751448659701,-460.0,0.00019452,2]
[369062819,1751448659712,-151.0,0.00019452,2]
[369062820,1751448659723,-904.82,0.00019452,2]
[369062821,1751448660000,-460.0,0.00019452,2]
[369062822,1751448660013,-151.0,0.00019452,2]
[369062823,1751448660023,-285.093735,0.00019452,2]
[369062824,1751448660033,-151.0,0.00019452,2]
[369062825,1751448660043,-285.093735,0.00019452,2]
[369062826,1751448660053,-460.0,0.00019452,2]
[369062827,1751448660064,-477.75,0.00019452,2]
[369062828,1751448660074,-151.0,0.00019452,2]
[369062829,1751448660084,-151.0,0.00019452,2]
[369062830,1751448660093,-151.0,0.00019452,2]
[369062831,1751448660103,-766.81,0.00019452,2]
[369062832,1751448660112,-151.0,0.00019452,2]
[369062833,1751448660122,-151.0,0.00019452,2]
[369062834,1751448660131,-1086.24,0.00019452,2]
[369062835,1751448660142,-151.0,0.00019452,2]
[369062836,1751448660152,-151.0,0.00019452,2]
[369062837,1751448660162,-151.0,0.00019452,2]
[369062838,1751448660172,-608.67,0.00019452,2]
[369062839,1751448660181,-460.0,0.00019452,2]
[369062840,1751448660191,-364.128603,0.00019452,2]
[369062841,1751448660201,-364.128603,0.00019452,2]
[369062842,1751448660211,-460.0,0.00019452,2]
[369062843,1751448660221,-1022.291429,0.00019452,2]
[369062844,1751448660230,-1022.291429,0.00019452,2]
[369062845,1751448660240,-460.0,0.00019452,2]
[369062846,1751448660250,-460.0,0.00019452,2]
[369062847,1751448660259,-460.0,0.00019452,2]
[369062848,1751448660269,-460.0,0.00019452,2]
[369062849,1751448660278,-460.0,0.00019452,2]
[369062850,1751448660288,-460.0,0.00019452,2]
[369062851,1751448660298,-198.44424534,0.00019452,2]
[369062852,1751448660308,-438.72667055,0.00019452,2]
[369062853,1751448660317,-945.26,0.00019452,2]
[369062854,1751448660326,-460.0,0.00019452,2]
[369062855,1751448660336,-816.42,0.00019452,2]
[369062856,1751448660345,-460.0,0.00019452,2]
[369062857,1751448660355,-460.0,0.00019452,2]
[369062858,1751448660365,-521.7,0.00019452,2]
[369062859,1751448660375,-460.0,0.00019452,2]
[369062860,1751448660384,-726.91,0.00019452,2]
[369062861,1751448660393,-542.8,0.00019452,2]
[369062862,1751448660403,-460.0,0.00019452,2]
[369062863,1751448660413,-1110.18,0.00019452,2]
[369062864,1751448660422,-526.57,0.00019452,2]
[369062865,1751448660431,-460.0,0.00019452,2]
[369062866,1751448660440,-1737.72,0.00019452,2]
[369062867,1751448660450,-460.0,0.00019452,2]
[369062868,1751448660459,-773.83,0.00019452,2]
[369062869,1751448660468,-798.89,0.00019452,2]
[369062870,1751448660477,-460.0,0.00019452,2]
[369062871,1751448660487,-1601.52,0.00019452,2]
[369062872,1751448660497,-981.86,0.00019452,2]
[369062873,1751448660506,-460.0,0.00019452,2]
[369062874,1751448660515,-639.2,0.00019452,2]
[369062875,1751448660525,-460.0,0.00019452,2]
[369062876,1751448660534,-460.0,0.00019452,2]
[369062877,1751448660543,-1252.66,0.00019452,2]
[369062878,1751448660553,-1779.81,0.00019452,2]
[369062879,1751448660562,-514.94,0.00019452,2]
[369062880,1751448660571,-460.0,0.00019452,2]
[369062881,1751448660581,-543.32,0.00019452,2]
[369062882,1751448660591,-1979.52090966,0.00019452,2]
[369062883,1751448660634,-1063.70909034,0.00019452,2]
[369062884,1751448660643,-388.34589888,0.00019452,2]
[369062885,1751448660652,-1039.31,0.00019452,2]
[369062886,1751448660665,-8.91601078,0.00019452,2]
[369062887,1751448660805,-532.14,0.00016438,2]
[369062888,1751448660814,-460.0,0.00016438,2]
[369062889,1751448660824,-40.20883706,0.00016438,2]
[369062890,1751448660836,-419.79116294,0.00016438,2]
[369062891,1751448660845,-410.84833706,0.00016712,2]
[369062892,1751448660858,-49.15166294,0.00016712,2]
[369062893,1751448660868,-268.97,0.00016986,2]
[369062894,1751448660877,-451.08398922,0.00019452,2]
[369062895,1751448660886,-673.44,0.00019452,2]
[369062896,1751448660895,-752.26,0.00019452,2]
[369062897,1751448660905,-460.0,0.00019452,2]
[369062898,1751448660914,-493.22,0.00019452,2]
[369062899,1751448660924,-945.26,0.00019452,2]
[369062900,1751448660933,-460.0,0.00019452,2]
[369062901,1751448660943,-460.0,0.00019452,2]
[369062902,1751448660952,-460.0,0.00019452,2]
[369062903,1751448660962,-2036.78,0.00019452,2]
[369062904,1751448660971,-850.18,0.00019452,2]
[369062905,1751448660981,-917.87,0.00019452,2]
[369062906,1751448660990,-738.02,0.00019452,2]
[369062907,1751448660999,-460.0,0.00019452,2]
[369062908,1751448661009,-726.24911784,0.00019452,2]
[369062909,1751448661021,-2070.38088216,0.00019452,2]
[369062910,1751448661030,-601.73,0.00019452,2]
[369062911,1751448661039,-460.0,0.00019452,2]
[369062912,1751448661049,-460.0,0.00019452,2]
[369062913,1751448661058,-460.0,0.00019452,2]
[369062914,1751448661068,-704.62,0.00019452,2]
[369062915,1751448661077,-460.0,0.00019452,2]
[369062916,1751448661087,-556.49,0.00019452,2]
[369062917,1751448661096,-586.67,0.00019452,2]
[369062918,1751448661106,-2772.01,0.00019452,2]
[369062919,1751448661115,-918.17,0.00019452,2]
[369062920,1751448661124,-4661.58,0.00019452,2]
[369062921,1751448661134,-521.34,0.00019452,2]
[369062922,1751448661144,-690.26,0.00019452,2]
[369062923,1751448661153,-657.84,0.00019452,2]
[369062924,1751448661163,-4403.74,0.00019452,2]
[369062925,1751448661172,-763.68,0.00019452,2]
[369062926,1751448661182,-3041.35,0.00019452,2]
[369062927,1751448661192,-460.0,0.00019452,2]
[369062928,1751448661202,-1765.57,0.00019452,2]
[369062929,1751448661212,-460.0,0.00019452,2]
[369062930,1751448661221,-1237.16,0.00019452,2]
[369062931,1751448661232,-714.34,0.00019452,2]
[369062932,1751448661241,-460.0,0.00019452,2]
[369062933,1751448661251,-460.0,0.00019452,2]
[369062934,1751448661261,-703.87,0.00019452,2]
[369062935,1751448661270,-460.0,0.00019452,2]
[369062936,1751448661279,-646.36,0.00019452,2]
[369062937,1751448661289,-1222.14,0.00019452,2]
[369062938,1751448661298,-460.0,0.00019452,2]
[369062939,1751448661307,-460.3,0.00019452,2]
[369062940,1751448661316,-1387.48,0.00019452,2]
[369062941,1751448661325,-680.46,0.00019452,2]
[369062942,1751448661334,-1945.84,0.00019452,2]
[369062943,1751448661343,-1561.58,0.00019452,2]
[369062944,1751448661353,-793.44,0.00019452,2]
[369062945,1751448661362,-6281.5,0.00019452,2]
[369062946,1751448661371,-1905.09,0.00019452,2]
[369062947,1751448661381,-779.68,0.00019452,2]
[369062948,1751448661390,-460.0,0.00019452,2]
[369062949,1751448661399,-1500.0,0.00019512,2]
[369062950,1751448661409,-302.54622906,0.0001957,2]
[369062951,1751448661418,-587.0,0.00019622,2]
[369062952,1751448661428,-1167.65847021,0.00019693,2]
[369062953,1751448661437,-676.41,0.00019726,2]
[369062954,1751448661458,-567.17,0.00019726,2]
[369062955,1751448661468,-518.44,0.00019726,2]
[369062956,1751448661477,-269.761555,0.00019726,2]
[369062957,1751448661487,-460.0,0.00019726,2]
[369062958,1751448661497,-151.0,0.00019726,2]
[369062959,1751448661507,-557.63,0.00019726,2]
[369062960,1751448661516,-244.387052,0.00019726,2]
[369062961,1751448661526,-244.387052,0.00019726,2]
[369062962,1751448661535,-151.0,0.00019726,2]
[369062963,1751448661545,-460.0,0.00019726,2]
[369062964,1751448661554,-904.82,0.00019726,2]
[369062965,1751448661563,-277.32477786,0.00019726,2]
[369062966,1751448661573,-151.0,0.00019726,2]
[369062967,1751448661583,-460.0,0.00019726,2]
[369062968,1751448661592,-477.75,0.00019726,2]
[369062969,1751448661603,-766.81,0.00019726,2]
[369062970,1751448661612,-1086.24,0.00019726,2]
[369062971,1751448661622,-608.67,0.00019726,2]
[369062972,1751448661631,-178.16484544,0.00019726,2]
[369062973,1751448661640,-460.0,0.00019726,2]
[369062974,1751448661650,-460.0,0.00019726,2]
[369062975,1751448661663,-460.0,0.00019726,2]
[369062976,1751448661673,-341.19390809,0.00019726,2]
[369062977,1751448661683,-460.0,0.00019726,2]
[369062978,1751448661692,-460.0,0.00019726,2]
[369062979,1751448661703,-460.0,0.00019726,2]
[369062980,1751448661712,-460.0,0.00019726,2]
[369062981,1751448661722,-945.26,0.00019726,2]
[369062982,1751448661732,-460.0,0.00019726,2]
[369062983,1751448661742,-816.42,0.00019726,2]
[369062984,1751448661751,-460.0,0.00019726,2]
[369062985,1751448661761,-460.0,0.00019726,2]
[369062986,1751448661771,-521.7,0.00019726,2]
[369062987,1751448661780,-460.0,0.00019726,2]
[369062988,1751448661790,-726.91,0.00019726,2]
[369062989,1751448661799,-542.8,0.00019726,2]
[369062990,1751448661809,-460.0,0.00019726,2]
[369062991,1751448661819,-151.0,0.00019726,2]
[369062992,1751448661828,-526.57,0.00019726,2]
[369062993,1751448661839,-460.0,0.00019726,2]
[369062994,1751448661848,-1737.72,0.00019726,2]
[369062995,1751448661859,-460.0,0.00019726,2]
[369062996,1751448661869,-773.83,0.00019726,2]
[369062997,1751448661878,-798.89,0.00019726,2]
[369062998,1751448661888,-460.0,0.00019726,2]
[369062999,1751448661898,-1601.52,0.00019726,2]
[369063000,1751448661908,-981.86,0.00019726,2]
[369063001,1751448661917,-460.0,0.00019726,2]
[369063002,1751448661927,-639.2,0.00019726,2]
[369063003,1751448661937,-460.0,0.00019726,2]
[369063004,1751448661946,-460.0,0.00019726,2]
[369063005,1751448661955,-1252.66,0.00019726,2]
[369063006,1751448661965,-1779.81,0.00019726,2]
[369063007,1751448661975,-514.94,0.00019726,2]
[369063008,1751448661984,-460.0,0.00019726,2]
[369063009,1751448661994,-543.32,0.00019726,2]
[369063010,1751448662004,-3043.23,0.00019726,2]
[369063011,1751448662013,-1039.31,0.00019726,2]
[369063012,1751448662023,-460.0,0.00019726,2]
[369063013,1751448662032,-549.247436,0.00019726,2]
[369063014,1751448662042,-673.44,0.00019726,2]
[369063015,1751448662051,-752.26,0.00019726,2]
[369063016,1751448662061,-549.247436,0.00019726,2]
[369063017,1751448662071,-460.0,0.00019726,2]
[369063018,1751448662082,-493.22,0.00019726,2]
[369063019,1751448662091,-945.26,0.00019726,2]
[369063020,1751448662100,-460.0,0.00019726,2]
[369063021,1751448662110,-460.0,0.00019726,2]
[369063022,1751448662120,-460.0,0.00019726,2]
[369063023,1751448662130,-151.0,0.00019726,2]
[369063024,1751448662140,-2036.78,0.00019726,2]
[369063025,1751448662150,-850.18,0.00019726,2]
[369063026,1751448662159,-917.87,0.00019726,2]
[369063027,1751448662170,-738.02,0.00019726,2]
[369063028,1751448662180,-460.0,0.00019726,2]
[369063029,1751448662189,-2796.63,0.00019726,2]
[369063030,1751448662199,-601.73,0.00019726,2]
[369063031,1751448662209,-460.0,0.00019726,2]
[369063032,1751448662218,-520.175804,0.00019726,2]
[369063033,1751448662227,-151.0,0.00019726,2]
[369063034,1751448662236,-520.175804,0.00019726,2]
[369063035,1751448662247,-460.0,0.00019726,2]
[369063036,1751448662256,-395.37,0.00019726,2]
[369063037,1751448662265,-704.62,0.00019726,2]
[369063038,1751448662274,-460.0,0.00019726,2]
[369063039,1751448662283,-556.49,0.00019726,2]
[369063040,1751448662293,-586.67,0.00019726,2]
[369063041,1751448662302,-2772.01,0.00019726,2]
[369063042,1751448662311,-918.17,0.00019726,2]
[369063043,1751448662321,-4661.58,0.00019726,2]
[369063044,1751448662331,-521.34,0.00019726,2]
[369063045,1751448662340,-690.26,0.00019726,2]
[369063046,1751448662349,-657.84,0.00019726,2]
[369063047,1751448662358,-763.68,0.00019726,2]
[369063048,1751448662367,-4403.74,0.00019726,2]
[369063049,1751448662377,-3041.35,0.00019726,2]
[369063050,1751448662387,-460.0,0.00019726,2]
[369063051,1751448662397,-1765.57,0.00019726,2]
[369063052,1751448662406,-460.0,0.00019726,2]
[369063053,1751448662415,-1237.16,0.00019726,2]
[369063054,1751448662424,-714.34,0.00019726,2]
[369063055,1751448662435,-460.0,0.00019726,2]
[369063056,1751448662444,-703.87,0.00019726,2]
[369063057,1751448662453,-460.0,0.00019726,2]
[369063058,1751448662463,-460.0,0.00019726,2]
[369063059,1751448662473,-646.36,0.00019726,2]
[369063060,1751448662482,-1222.14,0.00019726,2]
[369063061,1751448662491,-829.430214,0.00019726,2]
[369063062,1751448662501,-460.0,0.00019726,2]
[369063063,1751448662511,-460.3,0.00019726,2]
[369063064,1751448662520,-829.430214,0.00019726,2]
[369063065,1751448662530,-1387.48,0.00019726,2]
[369063066,1751448662541,-680.46,0.00019726,2]
[369063067,1751448662552,-151.0,0.00019726,2]
[369063068,1751448662561,-151.0,0.00019726,2]
[369063069,1751448662571,-1945.84,0.00019726,2]
[369063070,1751448662580,-1561.58,0.00019726,2]
[369063071,1751448662590,-793.44,0.00019726,2]
[369063072,1751448662599,-6281.5,0.00019726,2]
[369063073,1751448662609,-1905.09,0.00019726,2]
[369063074,1751448662618,-779.68,0.00019726,2]
[369063075,1751448662628,-460.0,0.00019726,2]
[369063076,1751448662638,-167.71414338,0.0001976,2]
[369063077,1751448662648,-641.0,0.000198,2]
[369063078,1751448662658,-2351.0,0.00019818,2]
[369063079,1751448662668,-1192.599461,0.00019867,2]
[369063080,1751448662681,-1091.327,0.00019936,2]
[369063081,1751448662691,-449.8,0.00019962,3]
[369063082,1751448662700,-9508.84842831,0.0002,2]
[369063083,1751448662709,-500.136,0.0002,2]
[369063084,1751448662719,-676.41,0.0002,2]
[369063085,1751448662728,-151.0,0.0002,2]
[369063086,1751448662737,-567.17,0.0002,2]
[369063087,1751448662747,-518.44,0.0002,2]
[369063088,1751448662757,-151.0,0.0002,2]
[369063089,1751448662767,-197.422233,0.0002,2]
[369063090,1751448662776,-154.553503,0.0002,2]
[369063091,1751448662786,-460.0,0.0002,2]
[369063092,1751448662796,-1323.195324,0.0002,2]
[369063093,1751448662806,-1323.195324,0.0002,2]
[369063094,1751448662816,-557.63,0.0002,2]
[369063095,1751448662826,-460.0,0.0002,2]
[369063096,1751448662836,-904.82,0.0002,2]
[369063097,1751448662846,-180.081975,0.0002,2]
[369063098,1751448662856,-151.0,0.0002,2]
[369063099,1751448662866,-151.0,0.0002,2]
[369063100,1751448662876,-180.081975,0.0002,2]
[369063101,1751448662885,-460.0,0.0002,2]
[369063102,1751448662895,-477.75,0.0002,2]
[369063103,1751448662905,-766.81,0.0002,2]
[369063104,1751448662914,-1086.24,0.0002,2]
[369063105,1751448662924,-608.67,0.0002,2]
[369063106,1751448662933,-460.0,0.0002,2]
[369063107,1751448662943,-151.0,0.0002,2]
[369063108,1751448662952,-386.85854873,0.0002,2]
[369063109,1751448662962,-460.0,0.0002,2]
[369063110,1751448662972,-485.8832637,0.0002,2]
[369063111,1751448662981,-460.0,0.0002,2]
[369063112,1751448662991,-460.0,0.0002,2]
[369063113,1751448663001,-460.0,0.0002,2]
[369063114,1751448663011,-151.0,0.0002,2]
[369063115,1751448663021,-945.26,0.0002,2]
[369063116,1751448663032,-151.0,0.0002,2]
[369063117,1751448663042,-460.0,0.0002,2]
[369063118,1751448663052,-816.42,0.0002,2]
[369063119,1751448663063,-460.0,0.0002,2]
[369063120,1751448663073,-460.0,0.0002,2]
[369063121,1751448663083,-521.7,0.0002,2]
[369063122,1751448663093,-460.0,0.0002,2]
[369063123,1751448663103,-726.91,0.0002,2]
[369063124,1751448663260,-151.0,0.0002,2]
[369063125,1751448663272,-403.646706,0.0002,2]
[369063126,1751448663283,-403.646706,0.0002,2]
[369063127,1751448663293,-542.8,0.0002,2]
[369063128,1751448663303,-460.0,0.0002,2]
[369063129,1751448663313,-526.57,0.0002,2]
[369063130,1751448663323,-460.0,0.0002,2]
[369063131,1751448663333,-1737.72,0.0002,2]
[369063132,1751448663342,-460.0,0.0002,2]
[369063133,1751448663352,-773.83,0.0002,2]
[369063134,1751448663362,-798.89,0.0002,2]
[369063135,1751448663372,-460.0,0.0002,2]
[369063136,1751448663382,-1601.52,0.0002,2]
[369063137,1751448663393,-400.458093,0.0002,2]
[369063138,1751448663405,-981.86,0.0002,2]
[369063139,1751448663415,-460.0,0.0002,2]
[369063140,1751448663425,-400.458093,0.0002,2]
[369063141,1751448663434,-639.2,0.0002,2]
[369063142,1751448663443,-460.0,0.0002,2]
[369063143,1751448663453,-315.078203,0.0002,2]
[369063144,1751448663463,-460.0,0.0002,2]
[369063145,1751448663473,-315.078203,0.0002,2]
[369063146,1751448663482,-1252.66,0.0002,2]
[369063147,1751448663492,-1779.81,0.0002,2]
[369063148,1751448663502,-514.94,0.0002,2]
[369063149,1751448663512,-597.83478543,0.0002,2]
[369063150,1751448663523,-543.32,0.0002,2]
[369063151,1751448663532,-3043.23,0.0002,2]
[369063152,1751448663542,-1039.31,0.0002,2]
[369063153,1751448663551,-152.4628934,0.0002,2]
[369063154,1751448663560,-673.44,0.0002,2]
[369063155,1751448663570,-752.26,0.0002,2]
[369063156,1751448663579,-460.0,0.0002,2]
[369063157,1751448663589,-493.22,0.0002,2]
[369063158,1751448663599,-945.26,0.0002,2]
[369063159,1751448663608,-460.0,0.0002,2]
[369063160,1751448663618,-460.0,0.0002,2]
[369063161,1751448663627,-171.85333315,0.0002,2]
[369063162,1751448663637,-2036.78,0.0002,2]
[369063163,1751448663647,-850.18,0.0002,2]
[369063164,1751448663657,-917.87,0.0002,2]
[369063165,1751448663667,-738.02,0.0002,2]
[369063166,1751448663681,-335.60995805,0.0002,2]
[369063167,1751448663691,-2796.63,0.0002,2]
[369063168,1751448663701,-601.73,0.0002,2]
[369063169,1751448663711,-460.0,0.0002,2]
[369063170,1751448663722,-460.0,0.0002,2]
[369063171,1751448663731,-704.62,0.0002,2]
[369063172,1751448663741,-460.0,0.0002,2]
[369063173,1751448663751,-556.49,0.0002,2]
[369063174,1751448663761,-586.67,0.0002,2]
[369063175,1751448663771,-2772.01,0.0002,2]
[369063176,1751448663781,-918.17,0.0002,2]
[369063177,1751448663791,-4661.58,0.0002,2]
[369063178,1751448663801,-300.0,0.0002,2]
[369063179,1751448663812,-521.34,0.0002,2]
[369063180,1751448663821,-690.26,0.0002,2]
[369063181,1751448663832,-657.84,0.0002,2]
[369063182,1751448663842,-151.0,0.0002,2]
[369063183,1751448663852,-763.68,0.0002,2]
[369063184,1751448663863,-4403.74,0.0002,2]
[369063185,1751448663874,-3041.35,0.0002,2]
[369063186,1751448663883,-460.0,0.0002,2]
[369063187,1751448663893,-1765.57,0.0002,2]
[369063188,1751448663903,-177.65548772,0.0002,2]
[369063189,1751448663913,-1237.16,0.0002,2]
[369063190,1751448663923,-714.34,0.0002,2]
[369063191,1751448663933,-460.0,0.0002,2]
[369063192,1751448663943,-703.87,0.0002,2]
[369063193,1751448663953,-169.03737682,0.0002,2]
[369063194,1751448663963,-646.36,0.0002,2]
[369063195,1751448663974,-1222.14,0.0002,2]
[369063196,1751448663985,-460.0,0.0002,2]